lending/lending_fUSD_20251114
["ID","MTS","AMOUNT","RATE_DAILY","PERIOD"]
[393962083,1763133777402,-500.0,0.00017945,2]
[393962084,1763133777427,-1297.0,0.00017961,2]
[393962085,1763133777449,-14332.0,0.00017973,2]
[393962086,1763133777469,-9133.0,0.00017973,2]
[393962087,1763133777490,-1774.0,0.00017973,2]
[393962088,1763133777511,-569.20872666,0.00017973,2]
[393962089,1763133777532,-500.0,0.00017973,2]
[393962090,1763133777552,-502.72635091,0.00017973,2]
[393962091,1763133777573,-500.0,0.00017973,2]
[393962092,1763133777593,-500.0,0.00017973,2]
[393962093,1763133777787,-501.78005866,0.00017973,2]
[393962094,1763133777809,-500.0,0.00017973,2]
[393962095,1763133777830,-500.0,0.00017973,2]
[393962096,1763133777851,-501.91631598,0.00017973,2]
[393962097,1763133777872,-501.77594875,0.00017973,2]
[393962098,1763133777893,-500.0,0.00017973,2]
[393962099,1763133777915,-502.59344197,0.00017973,2]
[393962100,1763133777935,-502.30073281,0.00017973,2]
[393962101,1763133777957,-501.25798024,0.00017973,2]
[393962102,1763133777988,-500.0,0.00017973,2]
[393962103,1763133778014,-500.0,0.00017973,2]
[393962104,1763133778037,-165.98689145,0.00017973,2]
[393962105,1763133778060,-486.89386542,0.00017973,2]
[393962106,1763133778082,-502.52932998,0.00017973,2]
[393962107,1763133778107,-501.70960681,0.00017973,2]
[393962108,1763133778130,-500.0,0.00017973,2]
[393962109,1763133778152,-504.30256629,0.00017973,2]
[393962110,1763133778175,-605.791,0.00017973,2]
[393962111,1763133778198,-1344.41843685,0.0001799,2]
[393962112,1763133778220,-1344.41843685,0.0001799,2]
[393962113,1763133778243,-1344.41843685,0.0001799,2]
[393962114,1763133778265,-163.63,0.0001799,2]
[393962115,1763133778286,-163.63,0.0001799,2]
[393962116,1763133778311,-500.0,0.00017997,2]
[393962117,1763133778333,-4965.0,0.00017998,2]
[393962118,1763133778359,-92800.5904059,0.00017998,2]
[393962119,1763133778381,-300.0,0.00017999,2]
[393962120,1763133778409,-1419.91153423,0.00017999,5]
[393962121,1763133778431,-300.0,0.00017999,2]
[393962122,1763133778453,-500.0,0.00017999,2]
[393962123,1763133778475,-500.0,0.00017999,2]
[393962124,1763133778496,-500.0,0.00017999,2]
[393962125,1763133778520,-3215.09547757,0.00018,2]
[393962126,1763133805968,-10000.01,0.00015704,2]
[393962127,1763133807877,-23304.9921,0.00015704,2]
[393962128,1763133807910,-1818.898037,0.00015783,2]
[393962129,1763133807938,-151.0,0.00015795,2]
[393962130,1763133807961,-151.0,0.00015795,2]
[393962131,1763133807985,-151.0,0.00015795,2]
[393962132,1763133808009,-151.0,0.00015795,2]
[393962133,1763133808032,-151.0,0.00015795,2]
[393962134,1763133808053,-151.0,0.00015795,2]
[393962135,1763133808075,-151.0,0.00015795,2]
[393962136,1763133808098,-151.0,0.00015795,2]
[393962137,1763133808120,-151.0,0.00015795,2]
[393962138,1763133808143,-151.0,0.00015795,2]
[393962139,1763133808165,-151.0,0.00015795,2]
[393962140,1763133808187,-151.0,0.00015795,2]
[393962141,1763133808209,-151.0,0.00015795,2]
[393962142,1763133808231,-151.0,0.00015795,2]
[393962143,1763133808253,-151.0,0.00015795,2]
[393962144,1763133808275,-151.0,0.00015795,2]
[393962145,1763133808298,-151.0,0.00015795,2]
[393962146,1763133808323,-151.0,0.00015795,2]
[393962147,1763133808346,-151.0,0.00015795,2]
[393962148,1763133808369,-151.0,0.00015795,2]
[393962149,1763133808390,-500.0,0.00015803,2]
[393962150,1763133808412,-500.0,0.00015803,2]
[393962151,1763133808432,-154.44173708,0.00015803,2]
[393962152,1763133808454,-191.2113874,0.00015803,2]
[393962153,1763133808474,-510.09371407,0.00015873,2]
[393962154,1763133808493,-431.70775828,0.00015873,2]
[393962155,1763133808514,-166.66,0.00016242,2]
[393962156,1763133808534,-250.0,0.00016254,2]
[393962157,1763133808563,-166.66,0.00016584,2]
[393962158,1763133808585,-151.52,0.00016704,2]
[393962159,1763133808606,-166.66,0.00016926,2]
[393962160,1763133808627,-151.0,0.00016932,2]
[393962161,1763133808646,-151.0,0.00017116,2]
[393962162,1763133808668,-166.66,0.00017268,2]
[393962163,1763133808690,-300.0,0.00017275,2]
[393962164,1763133808715,-300.0,0.00017275,2]
[393962165,1763133808736,-300.0,0.00017275,2]
[393962166,1763133808757,-300.0,0.00017275,2]
[393962167,1763133808784,-300.0,0.00017275,2]
[393962168,1763133808806,-250.0,0.00017302,2]
[393962169,1763133808827,-250.0,0.00017383,2]
[393962170,1763133808850,-166.66,0.0001761,2]
[393962171,1763133808872,-339.56983353,0.000179,2]
[393962172,1763133808893,-568.69301479,0.000179,2]
[393962173,1763133808913,-210.0,0.00017916,2]
[393962174,1763133808935,-166.66,0.00017952,2]
[393962175,1763133808956,-503.31304757,0.00017973,2]
[393962176,1763133808991,-500.0,0.00017973,2]
[393962177,1763133809037,-500.0,0.00017973,2]
[393962178,1763133809088,-300.0,0.00017999,2]
[393962179,1763133809151,-300.0,0.00017999,2]
[393962180,1763133809230,-710643.59937028,0.00018,2]
[393962181,1763133811815,-10000.01,0.00015692,2]
[393962182,1763133838647,-180000.0,0.00015692,2]
[393962184,1763133897066,-153.99934978,0.00015598,2]
[393962185,1763133897089,-300.0,0.00015691,2]
[393962186,1763133897109,-300.0,0.00015691,2]
[393962187,1763133897131,-500.0,0.00015691,2]
[393962188,1763133897153,-273.89249134,0.00015691,2]
[393962189,1763133897173,-337.97948879,0.00015691,2]
[393962190,1763133897197,-500.0,0.00015691,2]
[393962191,1763133897218,-254.29904561,0.00015691,2]
[393962192,1763133897240,-421379.82962448,0.00015692,2]
[393962193,1763133910974,10000.01,0.000154,2]
[393962194,1763133911002,818.98605804,0.000154,2]
[393962195,1763133915333,-326.45195804,0.00015591,2]
[393962196,1763133915368,-300.0,0.00015691,2]
[393962197,1763133915403,-1200.0,0.00015691,2]
[393962198,1763133915439,-300.0,0.00015691,2]
[393962199,1763133915774,-4928.12002588,0.00015692,2]
[393962200,1763133915854,-10000.01,0.00015692,2]
[393962201,1763133916011,-10000.01,0.00015692,2]
[393962202,1763133920007,7495.69824745,9e-05,2]
[393962203,1763133920155,-10000.01,0.00015692,2]
[393962204,1763133920315,-10000.01,0.00015692,2]
[393962205,1763133923268,-10000.01,0.00015692,2]
[393962206,1763133924317,-10000.01,0.00015692,2]
[393962207,1763133924357,-10000.01,0.00015692,2]
[393962208,1763133924386,-10000.01,0.00015692,2]
[393962209,1763133925588,1020.1245818,0.000108,2]
[393962210,1763133932484,-10000.01,0.00015692,2]
[393962211,1763133932609,-10000.01,0.00015692,2]
[393962212,1763133932756,-10000.01,0.00015692,2]
[393962214,1763133935502,-10000.01,0.00015692,2]
[393962215,1763133936315,6671.75565922,0.0001,2]
[393962216,1763133938835,-10000.01,0.00015692,2]
[393962217,1763133944900,-10000.01,0.00015692,2]
[393962218,1763133947822,-3691.90034964,0.00015692,2]
[393962219,1763133947857,-238.36268509,0.00015698,2]
[393962220,1763133947892,-1000.0,0.00015704,2]
[393962221,1763133947977,-139.48393054,0.00015704,2]
[393962222,1763133951151,-1545.84866946,0.00015704,2]
[393962223,1763133951197,-6908.31266108,0.00015704,2]
[393962224,1763133953953,-10000.01,0.00015704,2]
[393962225,1763133961247,-10000.01,0.00015704,2]
[393962226,1763133964101,-300.0,0.00015703,2]
[393962227,1763133964133,-2994.97106108,0.00015704,2]
[393962228,1763133964177,-3410.06787784,0.00015704,2]
[393962229,1763133967355,-500.0,0.00015803,2]
[393962230,1763133971935,459.5899,0.00015592,2]
[393962231,1763133979783,8540.4201,0.00015592,2]
[393962232,1763133985631,-1000.0,0.00015592,2]
[393962233,1763133988682,-10000.01,0.00015592,2]
[393962234,1763133991886,-10000.01,0.00015592,2]
[393962235,1763133992094,-10000.01,0.00015592,2]
[393962236,1763133992217,-10000.01,0.00015592,2]
[393962237,1763133992348,-10000.01,0.00015592,2]
[393962238,1763133992474,-10000.01,0.00015592,2]
[393962239,1763133992633,-10000.01,0.00015592,2]
[393962240,1763133992765,-10000.01,0.00015592,2]
[393962241,1763133992921,-10000.01,0.00015592,2]
[393962242,1763133993068,-10000.01,0.00015592,2]
[393962243,1763133994884,-236.58564216,0.00015591,2]
[393962244,1763133994919,-191.72474394,0.00015591,2]
[393962245,1763133994953,-500.0,0.00015591,2]
[393962246,1763133994986,-378.00933193,0.00015591,2]
[393962247,1763133995084,-7387.37056394,0.00015592,2]
[393962248,1763134001060,-10000.01,0.00015592,2]
[393962249,1763134001466,-10000.01,0.00015592,2]
[393962250,1763134001615,-10000.01,0.00015592,2]
[393962251,1763134001794,-10000.01,0.00015592,2]
[393962252,1763134001930,-10000.01,0.00015592,2]
[393962253,1763134002092,-10000.01,0.00015592,2]
[393962254,1763134002219,-10000.01,0.00015592,2]
[393962255,1763134002366,-10000.01,0.00015592,2]
[393962256,1763134015580,46054.53452375,0.000162,5]
[393962258,1763134027234,4121.94803644,0.00015,2]
[393962265,1763134088395,7662.13678485,0.0001439,2]
[393962268,1763134101852,10162.46922408,0.00015,2]
[393962271,1763134114964,7116.0,0.00041458,30]
[393962273,1763134115716,1670.80181638,0.00014999,2]
[393962274,1763134120423,10000.01,0.00015,3]
[393962280,1763134212043,151.0,0.00015492,2]
[393962297,1763134232048,-300.0,0.00015589,2]
[393962299,1763134232059,-300.0,0.00015589,2]
[393962301,1763134232070,-300.0,0.00015589,2]
[393962303,1763134232081,-1200.0,0.00015589,2]
[393962305,1763134232091,-500.0,0.0001559,2]
[393962307,1763134232105,-501.37804262,0.0001559,2]
[393962309,1763134232117,-301.56028555,0.0001559,2]
[393962311,1763134232129,-500.0,0.0001559,2]
[393962313,1763134232143,-500.0,0.0001559,2]
[393962315,1763134232159,-500.0,0.0001559,2]
[393962318,1763134232172,-500.0,0.0001559,2]
[393962320,1763134232184,-500.0,0.0001559,2]
[393962322,1763134232204,-500.0,0.0001559,2]
[393962323,1763134232215,-500.0,0.0001559,2]
[393962324,1763134232226,-500.0,0.0001559,2]
[393962325,1763134232237,-500.0,0.0001559,2]
[393962326,1763134232247,-500.0,0.0001559,2]
[393962327,1763134232258,-500.0,0.0001559,2]
[393962328,1763134232268,-330.7143752,0.0001559,2]
[393962329,1763134232279,-500.0,0.0001559,2]
[393962330,1763134232289,-500.0,0.0001559,2]
[393962331,1763134232299,-500.0,0.0001559,2]
[393962332,1763134232309,-500.0,0.0001559,2]
[393962333,1763134232321,-500.0,0.0001559,2]
[393962334,1763134232332,-500.0,0.0001559,2]
[393962335,1763134232342,-500.0,0.0001559,2]
[393962336,1763134232352,-500.0,0.0001559,2]
[393962337,1763134232363,-500.0,0.0001559,2]
[393962338,1763134232374,-500.0,0.0001559,2]
[393962339,1763134232384,-500.0,0.0001559,2]
[393962340,1763134232394,-500.0,0.0001559,2]
[393962341,1763134232404,-500.0,0.0001559,2]
[393962342,1763134232414,-500.0,0.0001559,2]
[393962343,1763134232424,-500.0,0.0001559,2]
[393962344,1763134232435,-500.0,0.0001559,2]
[393962345,1763134232450,-500.0,0.0001559,2]
[393962346,1763134232461,-500.0,0.0001559,2]
[393962347,1763134232471,-500.0,0.0001559,2]
[393962348,1763134232481,-500.0,0.0001559,2]
[393962349,1763134232491,-500.0,0.0001559,2]
[393962352,1763134232501,-454.56187008,0.0001559,2]
[393962353,1763134232511,-500.0,0.0001559,2]
[393962354,1763134232522,-500.0,0.0001559,2]
[393962355,1763134232533,-500.0,0.0001559,2]
[393962357,1763134232546,-500.0,0.0001559,2]
[393962358,1763134232556,-500.0,0.0001559,2]
[393962359,1763134232566,-500.0,0.0001559,2]
[393962360,1763134232806,-500.0,0.0001559,2]
[393962361,1763134232816,-500.0,0.0001559,2]
[393962362,1763134232825,-500.0,0.0001559,2]
[393962363,1763134232835,-500.0,0.0001559,2]
[393962364,1763134232848,-500.0,0.0001559,2]
[393962365,1763134232858,-500.0,0.0001559,2]
[393962366,1763134232871,-500.0,0.0001559,2]
[393962367,1763134232881,-500.0,0.0001559,2]
[393962368,1763134232890,-500.0,0.0001559,2]
[393962369,1763134232899,-500.0,0.0001559,2]
[393962370,1763134232908,-500.0,0.0001559,2]
[393962371,1763134232917,-500.0,0.0001559,2]
[393962372,1763134232927,-500.0,0.0001559,2]
[393962373,1763134232940,-500.0,0.0001559,2]
[393962375,1763134232949,-500.0,0.0001559,2]
[393962377,1763134232959,-500.0,0.0001559,2]
[393962378,1763134232968,-500.0,0.0001559,2]
[393962379,1763134232977,-500.0,0.0001559,2]
[393962380,1763134232986,-500.0,0.0001559,2]
[393962381,1763134232996,-500.0,0.0001559,2]
[393962382,1763134233005,-500.0,0.0001559,2]
[393962383,1763134233013,-500.0,0.0001559,2]
[393962384,1763134233023,-500.0,0.0001559,2]
[393962385,1763134233032,-500.0,0.0001559,2]
[393962386,1763134233042,-500.0,0.0001559,2]
[393962387,1763134233052,-500.0,0.0001559,2]
[393962388,1763134233064,-500.0,0.0001559,2]
[393962389,1763134233074,-500.0,0.0001559,2]
[393962390,1763134233084,-500.0,0.0001559,2]
[393962391,1763134233094,-500.0,0.0001559,2]
[393962392,1763134233103,-500.0,0.0001559,2]
[393962393,1763134233113,-500.0,0.0001559,2]
[393962394,1763134233123,-500.0,0.0001559,2]
[393962395,1763134233132,-500.0,0.0001559,2]
[393962396,1763134233142,-500.0,0.0001559,2]
[393962397,1763134233151,-500.0,0.0001559,2]
[393962398,1763134233161,-500.0,0.0001559,2]
[393962399,1763134233171,-500.0,0.0001559,2]
[393962400,1763134233180,-270.9105683,0.0001559,2]
[393962401,1763134233194,-500.0,0.0001559,2]
[393962402,1763134233205,-500.0,0.0001559,2]
[393962403,1763134233214,-500.0,0.0001559,2]
[393962404,1763134233223,-500.0,0.0001559,2]
[393962405,1763134233234,-500.0,0.0001559,2]
[393962406,1763134233244,-500.0,0.0001559,2]
[393962407,1763134233254,-500.0,0.0001559,2]
[393962408,1763134233264,-500.0,0.0001559,2]
[393962409,1763134233273,-500.0,0.0001559,2]
[393962410,1763134233283,-277.09105683,0.0001559,2]
[393962411,1763134233292,-500.0,0.00015591,2]
[393962412,1763134233302,-214504.12714252,0.00015592,2]
[393962413,1763134233314,-1323.05998382,0.00015592,2]
[393962414,1763134233326,-122869.10468914,0.00015592,2]
[393962415,1763134233339,-185860.12790793,0.00015592,2]
[393962416,1763134233351,-20116.87221265,0.00015592,2]
[393962417,1763134233360,-1000.0,0.00015592,2]
[393962418,1763134233370,-537.71708729,0.00015592,2]
[393962419,1763134233382,-443.8799998,0.00015592,2]
[393962420,1763134234557,200.80546441,0.00015492,2]
[393962421,1763134236397,190.48033559,8.076e-05,2]
[393962422,1763134236428,1750.07966441,8.076e-05,2]
[393962423,1763134236609,1940.56,8.501e-05,2]
[393962424,1763134236883,1940.56,8.926e-05,2]
[393962425,1763134237110,1940.56,9.351e-05,2]
[393962426,1763134237360,1940.56,9.776e-05,2]
[393962427,1763134237586,1940.56,0.00010202,2]
[393962428,1763134237821,1940.56,0.00010627,2]
[393962434,1763134238008,-872.69521025,0.00015592,2]
[393962435,1763134238024,-5975.06160266,0.00015592,2]
[393962436,1763134238034,-1525.6268244,0.00015642,2]
[393962437,1763134238044,-500.0,0.00015803,2]
[393962438,1763134238055,-511.97836069,0.00015803,2]
[393962439,1763134238065,-500.0,0.00015803,2]
[393962440,1763134238075,-515.01217463,0.00015803,2]
[393962441,1763134238089,-200.0,0.00015955,2]
[393962442,1763134238099,-26311.63,0.00016206,2]
[393962443,1763134238110,-200.0,0.0001634,2]
[393962444,1763134238120,-563.40002918,0.00016408,2]
[393962445,1763134238130,-344.05605658,0.00016438,2]
[393962446,1763134238140,-166.66,0.00016599,2]
[393962447,1763134238151,-917.35,0.00016704,2]
[393962448,1763134238161,-345.0,0.00016711,2]
[393962449,1763134238173,-192.29,0.00016712,2]
[393962450,1763134238184,-150.0,0.0001678,2]
[393962451,1763134238200,-500.0,0.00016973,2]
[393962453,1763134238211,-500.0,0.00016973,2]
[393962455,1763134238222,-150.0,0.00016995,2]
[393962457,1763134238234,-191581.37241193,0.00017,2]
[393962459,1763134238247,-799.3595796,0.00017,2]
[393962462,1763134238260,-866.14159995,0.00017,2]
[393962467,1763134238301,1940.56,0.00011052,2]
[393962499,1763134238625,-254.25184471,0.00017,2]
[393962517,1763134238807,-76855.93713539,0.00017,2]
[393962520,1763134238819,-738414.6902127,0.00017,2]
[393962522,1763134238830,-300.0,0.00017,6]
[393962524,1763134238844,-420.0,0.00017051,2]
[393962526,1763134238854,-600.0,0.000171,6]
[393962528,1763134238863,-1680.0,0.00017137,2]
[393962530,1763134238877,-300.0,0.00017148,2]
[393962532,1763134238887,-300.0,0.00017148,2]
[393962534,1763134238896,-300.0,0.00017148,2]
[393962536,1763134238906,-300.0,0.00017148,2]
[393962538,1763134238916,-300.0,0.00017148,2]
[393962540,1763134238926,-250.0,0.00017149,2]
[393962542,1763134238936,-900.0,0.000172,6]
[393962544,1763134238948,-150.0,0.00017244,2]
[393962546,1763134238958,-150.0,0.00017244,2]
[393962548,1763134238968,-150.0,0.00017244,2]
[393962550,1763134238978,-851.03,0.00017244,2]
[393962552,1763134238988,-150.0,0.00017244,2]
[393962554,1763134238999,-526.26,0.00017244,2]
[393962556,1763134239009,-416.5,0.00017244,2]
[393962558,1763134239019,-150.99,0.0001726,2]
[393962560,1763134239029,-416.5,0.00017278,2]
[393962562,1763134239039,-1200.0,0.000173,6]
[393962564,1763134239048,-500.0,0.00017397,2]
[393962566,1763134239059,-1500.0,0.000174,6]
[393962568,1763134239069,-300.0,0.000175,6]
[393962570,1763134239079,-3695.8165335,0.00017504,2]
[393962572,1763134239088,-166.66,0.00017512,2]
[393962574,1763134239097,-300.0,0.000176,6]
[393962576,1763134239107,-17599.16009058,0.00017671,2]
[393962578,1763134239118,-9999.99,0.00017671,2]
[393962581,1763134239128,-300.0,0.000177,6]
[393962583,1763134239138,-403.0,0.000177,5]
[393962585,1763134239148,-6669.0,0.00017749,2]
[393962587,1763134239158,-300.0,0.000178,6]
[393962589,1763134239168,-2206.5248,0.0001782,2]
[393962591,1763134239178,-673.81627532,0.00017873,2]
[393962593,1763134239191,-358.35946228,0.00017873,2]
[393962595,1763134239201,-500.0,0.00017873,2]
[393962596,1763134239211,-1228.0,0.000179,2]
[393962598,1763134239221,-9203.08908405,0.000179,2]
[393962600,1763134239231,-495.0,0.000179,6]
[393962603,1763134239241,-531.26877777,0.000179,2]
[393962605,1763134239251,-1783.30114822,0.000179,3]
[393962606,1763134239261,-302.87952388,0.000179,3]
[393962609,1763134239271,-1137.38602958,0.000179,2]
[393962610,1763134239280,-607.59500972,0.000179,2]
[393962612,1763134239290,-785.71260034,0.000179,2]
[393962614,1763134239300,-442.4821488,0.000179,2]
[393962616,1763134239310,-246.92829124,0.00017973,2]
[393962618,1763134239320,-500.0,0.00017973,2]
[393962620,1763134239330,-500.0,0.00017973,2]
[393962622,1763134239341,-5866.1314209,0.00017989,5]
[393962625,1763134239351,-151.0,0.00017989,2]
[393962626,1763134239361,-151.0,0.00017989,2]
[393962629,1763134239370,-151.0,0.00017989,2]
[393962630,1763134239380,-151.0,0.00017989,2]
[393962633,1763134239391,-151.0,0.00017989,2]
[393962634,1763134239400,-151.0,0.00017989,2]
[393962637,1763134239410,-151.0,0.00017989,2]
[393962639,1763134239419,-151.0,0.00017989,2]
[393962641,1763134239431,-151.0,0.00017989,2]
[393962643,1763134239446,-151.0,0.00017989,2]
[393962646,1763134239461,-151.0,0.00017989,2]
[393962648,1763134239474,-151.0,0.00017989,2]
[393962650,1763134239484,-151.0,0.00017989,2]
[393962652,1763134239495,-151.0,0.00017989,2]
[393962654,1763134239505,-151.0,0.00017989,2]
[393962656,1763134239514,-151.0,0.00017989,2]
[393962658,1763134239524,-151.0,0.00017989,2]
[393962660,1763134239533,-151.0,0.00017989,2]
[393962662,1763134239543,-151.0,0.00017989,2]
[393962664,1763134239552,-151.0,0.00017989,2]
[393962666,1763134239562,-300.0,0.00017999,2]
[393962668,1763134239571,-3967.0,0.00018,2]
[393962670,1763134239581,-971834.88549876,0.00018,2]
[393962675,1763134239619,1940.56,0.00011477,2]
[393962680,1763134239654,1940.56,0.00011902,2]
[393962690,1763134239745,1940.56,0.00012327,2]
[393962695,1763134239779,1940.56,0.00012752,2]
[393962700,1763134239819,1940.56,0.00013177,2]
[393962705,1763134239856,1940.56,0.00013602,2]
[393962708,1763134239983,1940.56,0.00014027,2]
[393962714,1763134240078,-2145.0,0.00017749,2]
[393962715,1763134240088,-4397630.12947609,0.00018,2]
[393962716,1763134240258,-11070.0,0.00018,2]
[393962777,1763134241139,-3695.0,0.00018,2]
[393962779,1763134241150,-777.12919889,0.00018,2]
[393962782,1763134241161,-102845.89930982,0.00018,2]
[393962784,1763134241174,-534.2840352,0.00018,2]
[393962786,1763134241185,-5345.30244535,0.00018,2]
[393962788,1763134241199,-399.55103922,0.00018,2]
[393962791,1763134241210,-965.9634,0.00018,2]
[393962805,1763134241345,1940.56,0.00014452,2]
[393962830,1763134241587,1940.56,0.00014877,2]
[393962854,1763134241814,1940.56,0.00015302,2]
[393962902,1763134242439,20414.33416958,0.00015492,2]
[393962935,1763134245871,-1940.56,0.00015727,2]
[393962936,1763134245882,-200.80546438,0.00015836,2]
[393962937,1763134245892,-1940.56,0.00016152,2]
[393962938,1763134245901,-6645.36446655,0.00018,2]
[393962939,1763134246063,-808327.62160769,0.00018,2]
[393962940,1763134246212,-1901.35961461,0.00018,2]
[393962941,1763134246466,-1935.68,0.00018,2]
[393962980,1763134246837,-292.90558271,0.00018,2]
[393962983,1763134246852,-2420.11577205,0.00018,2]
[393962985,1763134246863,-1190.9031732,0.00018,2]
[393963049,1763134249062,-529.17139693,0.00018,2]
[393963050,1763134249663,-548.43884323,0.00018,2]
[393963051,1763134249675,-5000.00272454,0.00018,2]
[393963052,1763134249686,-2747.06,0.00018,2]
[393963053,1763134249782,-659.61486015,0.00018,2]
[393963055,1763134317539,3214.17,0.00041458,120]
[393963058,1763134391175,441.10838406,0.00015,2]
[393963084,1763134539607,-409.95,0.00024658,30]
[393963085,1763134539685,-409.95,0.00029704,30]
[393963086,1763134539745,-200.0,0.00032,120]
[393963087,1763134539794,-1086.19506536,0.00032,120]
[393963088,1763134539851,-409.95,0.00034751,30]
[393963089,1763134539902,-196.96920315,0.000349,120]
[393963090,1763134539955,-613.63078519,0.00035,120]
[393963091,1763134540007,-200.0,0.00036,120]
[393963092,1763134540060,-267.59,0.0003667,120]
[393963093,1763134540114,-172.51744831,0.000372,120]
[393963094,1763134540166,-172.51744828,0.000372,120]
[393963095,1763134540218,-172.51744828,0.000372,120]
[393963096,1763134540271,-172.51744828,0.000372,120]
[393963097,1763134540321,-10790.20853625,0.00037212,120]
[393963098,1763134540368,-1868.53852608,0.00037298,30]
[393963099,1763134540418,-1162.44669703,0.00037298,30]
[393963100,1763134540472,-1000.0,0.00037298,30]
[393963101,1763134540521,-1083.33941074,0.00037298,30]
[393963102,1763134540569,-4813.28435974,0.00038,120]
[393963103,1763134540617,-478.82688331,0.00038,120]
[393963104,1763134540664,-151.0,0.00038,31]
[393963105,1763134540714,-151.0,0.00038,31]
[393963106,1763134540763,-151.0,0.00038,31]
[393963107,1763134540812,-308.424561,0.00038,30]
[393963108,1763134540861,-308.424561,0.00038,30]
[393963109,1763134540917,-308.424561,0.00038,30]
[393963110,1763134540971,-308.424561,0.00038,30]
[393963111,1763134541034,-151.0,0.00038,31]
[393963112,1763134541095,-151.0,0.00038,31]
[393963113,1763134541151,-151.0,0.00038356,120]
[393963114,1763134541211,-500.0,0.000387,120]
[393963115,1763134541272,-500.0,0.000387,120]
[393963116,1763134541331,-500.0,0.000387,120]
[393963117,1763134541387,-500.0,0.000387,120]
[393963118,1763134541441,-500.0,0.000387,120]
[393963119,1763134541496,-500.0,0.000387,120]
[393963120,1763134541552,-500.0,0.000387,120]
[393963121,1763134541612,-500.0,0.000387,120]
[393963122,1763134541672,-500.0,0.000387,120]
[393963123,1763134541738,-500.0,0.000387,120]
[393963124,1763134541807,-500.0,0.000387,120]
[393963125,1763134541870,-500.0,0.000387,120]
[393963126,1763134541931,-500.0,0.000387,120]
[393963127,1763134541997,-500.0,0.000387,120]
[393963128,1763134542059,-500.0,0.000387,120]
[393963129,1763134542126,-500.0,0.000387,120]
[393963130,1763134542187,-500.0,0.000387,120]
[393963131,1763134542243,-500.0,0.000387,120]
[393963132,1763134542303,-500.0,0.000387,120]
[393963133,1763134542370,-500.0,0.000387,120]
[393963134,1763134542430,-500.0,0.000387,120]
[393963135,1763134542487,-500.0,0.000387,120]
[393963136,1763134542546,-500.0,0.000387,120]
[393963137,1763134542605,-500.0,0.000387,120]
[393963138,1763134542658,-500.0,0.000387,120]
[393963139,1763134542713,-500.0,0.000387,120]
[393963140,1763134542788,-500.0,0.000387,120]
[393963141,1763134542851,-500.0,0.000387,120]
[393963142,1763134542910,-500.0,0.000387,120]
[393963143,1763134542975,-500.0,0.000387,120]
[393963144,1763134543032,-500.0,0.000387,120]
[393963145,1763134543094,-500.0,0.000387,120]
[393963146,1763134543158,-500.0,0.000387,120]
[393963147,1763134543217,-500.0,0.000387,120]
[393963148,1763134543273,-500.0,0.000387,120]
[393963149,1763134543330,-500.0,0.000387,120]
[393963150,1763134543384,-500.0,0.000387,120]
[393963151,1763134543442,-500.0,0.000387,120]